bitfinex/quotes_SOLUSD_20241121
["timestamp","ask_amount","ask_price","bid_price","bid_amount"]
[1732199680159,22.90217772,244.3,244.25,9.2118]
[1732199680331,22.90217772,244.28,244.25,9.2118]
[1732199680623,22.90217772,244.28,244.25,12.8965]
[1732199680807,22.90217772,244.28,244.2,9.2134]
[1732199681008,10.73,244.38,244.2,9.2134]
[1732199681009,14.46421361,244.27,244.2,9.2134]
[1732199682103,14.46421361,244.21,244.09,18.4351]
[1732199682312,14.46421361,244.17,244.07,3.6874]
[1732199682526,14.46421361,244.13,244.07,12.906]
[1732199683040,14.46421361,244.18,244.09,14.46421361]
[1732199683231,14.46421361,244.14,244.07,12.906]
[1732199683717,14.46421361,244.16,244.07,27.37021361]
[1732199683908,14.46421361,244.14,244.07,27.37021361]
[1732199684344,14.46421361,244.14,244.07,12.906]
[1732199684507,4.0952,244.19,244.07,12.906]
[1732199684508,14.46421361,244.12,244.07,12.906]
[1732199684813,23.17202668,244.11,244.07,12.906]
[1732199685350,23.17202668,244.08,243.94,11.4781]
[1732199685559,23.17202668,244.06,243.96,23.17202668]
[1732199685759,23.17202668,244.06,243.98,23.17202668]
[1732199686044,23.17202668,244.04,243.95,23.17202668]
[1732199686249,23.17202668,244.02,243.94,11.4781]
[1732199686552,43.71872668,244.08,243.94,8.1987]
[1732199686553,23.17202668,243.95,243.94,8.1987]
[1732199686828,6.127,244.06,243.89,23.17202668]
[1732199686829,23.17202668,243.97,243.89,23.17202668]
[1732199687007,23.17202668,243.99,243.89,23.17202668]
[1732199687343,6.627,244.06,243.9,23.17202668]
[1732199687344,23.17202668,243.97,243.9,23.17202668]
[1732199687524,23.17202668,243.99,243.9,23.17202668]
[1732199687721,23.17202668,244.04,243.96,23.17202668]
[1732199688026,16.4496,244.08,243.97,3.279]
[1732199688027,23.17202668,244.06,243.97,3.279]
[1732199688251,23.17202668,244.08,243.98,23.17202668]
[1732199688428,23.17202668,244.08,244.0,23.17202668]
[1732199688745,23.17202668,244.02,243.97,11.4767]
[1732199689048,23.17202668,244.04,243.97,11.4767]
[1732199689239,23.17202668,244.06,243.97,34.64872668]
[1732199690739,15.1861,244.17,243.97,11.4767]
[1732199690740,23.17202668,244.03,243.97,11.4767]
[1732199690915,0.5,244.14,243.97,34.64872668]
[1732199690916,23.17202668,244.07,243.97,34.64872668]
[1732199691449,4.596,244.14,243.97,34.64872668]
[1732199691608,23.17202668,244.03,243.97,11.4767]
[1732199691810,25.4248,244.17,243.97,11.4767]
[1732199691811,23.17202668,244.09,244.0,23.17202668]
[1732199692009,23.17202668,244.07,243.98,23.17202668]
[1732199692715,23.17202668,244.09,244.02,23.17202668]
[1732199692916,23.17202668,244.11,244.03,11.4739]
[1732199693407,23.17202668,244.13,244.04,23.17202668]
[1732199693610,23.17202668,244.11,244.03,11.4739]
[1732199694030,23.17202668,244.13,244.04,23.17202668]
[1732199694256,23.17202668,244.15,244.06,23.17202668]
[1732199694445,15.1861,244.17,244.08,23.17202668]
[1732199694446,23.17202668,244.17,244.08,23.17202668]
[1732199694654,16.675,244.24,244.03,27.8653]
[1732199694655,23.17202668,244.22,244.12,23.17202668]
[1732199694941,23.17202668,244.22,244.13,11.4692]
[1732199695309,23.17202668,244.24,244.16,23.17202668]
[1732199695634,5.35097728,244.31,244.16,23.17202668]
[1732199695635,23.17202668,244.26,244.16,23.17202668]
[1732199695816,23.17202668,244.3,244.22,23.17202668]
[1732199696023,23.17202668,244.32,244.24,23.17202668]
[1732199696230,6.7098,244.41,244.19,6.3517]
[1732199696231,23.17202668,244.36,244.28,23.17202668]
[1732199696568,23.17202668,244.36,244.13,27.8539]
[1732199696764,23.17202668,244.3,244.21,23.17202668]
[1732199697036,23.17202668,244.3,244.22,11.465]
[1732199697543,23.17202668,244.34,244.25,23.17202668]
[1732199697729,23.17202668,244.36,244.27,23.17202668]
[1732199697932,23.17202668,244.36,244.25,23.17202668]
[1732199698131,23.17202668,244.34,244.25,23.17202668]
[1732199698926,23.17202668,244.32,244.23,23.17202668]
[1732199699131,23.17202668,244.3,244.24,11.464]
[1732199699350,23.17202668,244.3,244.24,8.1886]
[1732199699523,4.0924,244.36,244.24,11.464]
[1732199699524,23.17202668,244.28,244.24,11.464]
[1732199699718,23.17202668,244.28,244.24,8.1886]
[1732199699955,4.0924,244.36,244.17,11.4671]
[1732199699956,23.17202668,244.26,244.17,11.4671]
[1732199700108,23.17202668,244.23,244.17,11.4671]
[1732199700612,23.17202668,244.25,244.17,11.4671]
[1732199700845,23.17202668,244.31,244.21,23.17202668]
[1732199701043,23.17202668,244.31,244.22,11.465]
[1732199701232,23.17202668,244.29,244.22,11.465]
[1732199701432,23.17202668,244.31,244.22,11.465]
[1732199701766,23.17202668,244.37,244.27,23.17202668]
[1732199701965,23.17202668,244.37,244.22,27.8436]
[1732199701966,23.17202668,244.41,244.31,23.17202668]
[1732199702164,4.0901,244.49,244.23,6.4817]
[1732199702165,23.17202668,244.39,244.29,23.17202668]
[1732199702474,4.0901,244.49,244.23,6.4817]
[1732199702475,23.17202668,244.31,244.23,6.4817]
[1732199702648,23.17202668,244.31,244.23,29.65372668]
[1732199702818,23.17202668,244.31,244.23,6.4817]
[1732199703070,23.17202668,244.29,244.24,11.464]
[1732199703267,23.17202668,244.31,244.24,11.464]
[1732199703444,23.17202668,244.35,244.27,23.17202668]
[1732199703751,23.17202668,244.33,244.25,23.17202668]
[1732199704222,23.17202668,244.37,244.29,23.17202668]
[1732199704543,23.17202668,244.41,244.31,23.17202668]
[1732199704729,23.17202668,244.41,244.33,23.17202668]
[1732199705132,23.17202668,244.41,244.34,11.4594]
[1732199705449,23.17202668,244.39,244.34,11.4594]
[1732199705646,23.17202668,244.41,244.34,11.4594]
[1732199706659,23.17202668,244.35,244.28,8.187]
[1732199707016,23.17202668,244.38,244.3,23.17202668]
[1732199707237,23.17202668,244.38,244.28,31.35902668]
[1732199707442,23.17202668,244.36,244.28,8.187]
[1732199707640,23.17202668,244.34,244.28,8.187]
[1732199707838,23.17202668,244.36,244.28,8.187]
[1732199708344,23.17202668,244.36,244.28,31.35902668]
[1732199708642,23.17202668,244.34,244.28,8.187]
[1732199709031,23.17202668,244.32,244.28,8.187]
[1732199709649,23.17202668,244.3,244.22,8.189]
[1732199709835,23.17202668,244.34,244.24,23.17202668]
[1732199710129,23.17202668,244.34,244.25,11.4636]
[1732199710322,23.17202668,244.32,244.25,11.4636]
[1732199710741,23.17202668,244.3,244.25,11.4636]
[1732199710962,23.17202668,244.26,244.2,8.1898]
[1732199711180,23.17202668,244.26,244.09,15.5741]
[1732199711181,23.17202668,244.22,244.15,8.1915]
[1732199711456,23.17202668,244.2,244.15,8.1915]
[1732199711863,23.17202668,244.16,244.09,14.2502]
[1732199712058,23.17202668,244.14,244.09,8.1934]
[1732199712456,23.17202668,244.12,244.05,3.278]
[1732199712671,23.17202668,244.14,244.05,3.278]
[1732199713640,23.17202668,244.2,244.1,23.17202668]
[1732199713857,23.17202668,244.2,244.12,23.17202668]
[1732199714260,23.17202668,244.22,244.13,11.4692]
[1732199714786,23.17202668,244.17,244.08,23.17202668]
[1732199715275,23.17202668,244.16,244.07,23.17202668]
[1732199715859,23.17202668,244.14,244.06,23.17202668]
[1732199716159,23.17202668,244.14,244.07,11.472]
[1732199716739,23.17202668,244.1,244.03,3.2782]
[1732199716943,23.17202668,244.14,244.04,23.17202668]
[1732199717364,23.17202668,244.12,244.03,11.4739]
[1732199717736,23.17202668,244.1,244.03,11.4739]
[1732199717948,23.17202668,244.06,243.99,3.2787]
[1732199718444,23.17202668,244.06,243.99,11.4757]
[1732199719235,23.17202668,244.02,243.95,3.2792]
[1732199719538,23.17202668,244.0,243.95,3.2792]
[1732199720049,23.17202668,244.0,243.95,11.4776]
[1732199720258,23.17202668,244.0,243.95,8.1984]
[1732199720451,4.098,244.02,243.87,22.6509]
[1732199720452,23.17202668,243.97,243.91,3.2798]
[1732199720758,23.17202668,243.95,243.9,8.1999]
[1732199721056,23.17202668,243.97,243.9,11.4799]
[1732199721268,23.17202668,243.92,243.85,8.2017]
[1732199721576,23.17202668,243.9,243.85,8.2017]
[1732199721940,23.17202668,243.9,243.82,3.2811]
[1732199722352,23.17202668,243.9,243.82,34.65582668]
[1732199722840,23.17202668,243.86,243.82,8.2027]
[1732199723033,23.17202668,243.86,243.78,3.2816]
[1732199723850,23.17202668,243.88,243.79,23.17202668]
[1732199724166,10.2474,243.97,243.83,23.17202668]
[1732199724167,23.17202668,243.91,243.83,23.17202668]
[1732199724457,23.17202668,243.88,243.82,8.2027]
[1732199724642,0.5,244.08,243.87,23.17202668]
[1732199724835,23.17202668,243.98,243.9,23.17202668]
[1732199725747,23.17202668,243.96,243.88,23.17202668]
[1732199725942,23.17202668,243.98,243.9,23.17202668]
[1732199726253,23.17202668,243.96,243.88,23.17202668]
[1732199726442,23.17202668,243.98,243.9,23.17202668]
[1732199726858,23.17202668,243.96,243.88,23.17202668]
[1732199727035,23.17202668,243.92,243.84,11.4828]
[1732199727248,23.17202668,243.9,243.84,11.4828]
[1732199727647,23.17202668,243.88,243.84,8.202]
[1732199727845,23.17202668,243.88,243.8,3.2813]
[1732199728172,23.17202668,243.82,243.74,8.2054]
[1732199728367,23.17202668,243.8,243.71,23.17202668]
[1732199728563,23.17202668,243.84,243.75,23.17202668]
[1732199728906,23.17202668,243.92,243.83,23.17202668]
[1732199729101,23.17202668,243.94,243.86,23.17202668]
[1732199730160,23.17202668,243.92,243.84,23.17202668]
[1732199730357,23.17202668,243.94,243.86,26.45252668]
[1732199730681,23.17202668,243.94,243.84,8.2019]
[1732199730682,23.17202668,243.88,243.77,23.17202668]
[1732199730890,23.17202668,243.87,243.77,23.17202668]
[1732199731246,23.17202668,243.85,243.77,23.17202668]
[1732199731762,23.17202668,243.83,243.74,11.4875]
[1732199732064,23.17202668,243.83,243.74,8.2054]
[1732199732689,23.17202668,243.83,243.75,23.17202668]
[1732199733052,23.17202668,243.83,243.74,11.4875]
[1732199733053,23.17202668,243.85,243.77,23.17202668]
[1732199733275,23.17202668,243.89,243.79,23.17202668]
[1732199733558,23.17202668,243.85,243.74,11.4875]
[1732199733844,23.17202668,243.87,243.79,11.4852]
[1732199734272,23.17202668,243.85,243.79,8.2037]
[1732199734773,4.1002,243.89,243.74,23.17202668]
[1732199734774,23.17202668,243.83,243.74,23.17202668]
[1732199734968,23.17202668,243.85,243.76,23.17202668]
[1732199735451,23.17202668,243.85,243.78,23.17202668]
[1732199735865,23.17202668,243.83,243.79,8.2037]
[1732199736059,23.17202668,243.85,243.79,8.2037]
[1732199736251,23.17202668,243.85,243.79,11.4852]
[1732199736438,23.17202668,243.83,243.74,31.37722668]
[1732199736653,23.17202668,243.85,243.76,23.17202668]
[1732199736969,23.17202668,243.85,243.74,8.2052]
[1732199736970,23.17202668,243.83,243.74,31.37722668]
[1732199737281,23.17202668,243.81,243.74,31.37722668]
[1732199737500,23.17202668,243.79,243.7,26.45472668]
[1732199737690,23.17202668,243.81,243.72,23.17202668]
[1732199737850,27.27352668,243.81,243.72,26.45432668]
[1732199738175,27.27352668,243.81,243.72,3.2823]
[1732199738176,23.17202668,243.79,243.72,3.2823]
[1732199738356,23.17202668,243.77,243.7,31.37882668]
[1732199738666,23.17202668,243.77,243.7,8.2068]
[1732199739572,23.17202668,243.77,243.7,34.66152668]
[1732199739767,23.17202668,243.79,243.7,34.66152668]
[1732199740370,23.17202668,243.77,243.7,11.4895]
[1732199741173,23.17202668,243.77,243.68,23.17202668]
[1732199741351,23.17202668,243.73,243.67,3.283]
[1732199741550,23.17202668,243.72,243.65,11.4916]
[1732199742048,23.17202668,243.66,243.57,11.4955]
[1732199742564,23.17202668,243.66,243.57,34.66752668]
[1732199742773,23.17202668,243.7,243.63,23.17202668]
[1732199743084,23.17202668,243.64,243.57,11.4955]
[1732199743301,23.17202668,243.61,243.57,11.4955]
[1732199743477,23.17202668,243.63,243.57,11.4955]
[1732199743670,23.17202668,243.65,243.57,11.4955]
[1732199744260,23.17202668,243.72,243.57,8.2111]
[1732199744261,23.17202668,243.59,243.57,8.2111]
[1732199744467,23.17202668,243.59,243.5,0.81806981]
[1732199744468,23.67202668,243.59,243.5,0.81806981]
[1732199744673,23.17202668,243.51,243.5,0.81806981]
[1732199744866,23.17202668,243.55,243.5,0.81806981]
[1732199745471,15.8089,243.63,243.5,4.10336981]
[1732199745674,15.8089,243.63,243.5,12.31686981]
[1732199745886,30.7741,243.71,243.5,12.31686981]
[1732199745887,4.6035,243.7,243.5,12.31686981]
[1732199746083,17.0037,243.71,243.5,12.31686981]
[1732199746084,23.17202668,243.62,243.53,23.17202668]
[1732199746280,23.17202668,243.66,243.56,23.17202668]
[1732199746681,23.17202668,243.68,243.6,23.17202668]
[1732199746991,23.17202668,243.68,243.6,29.44032668]
[1732199747174,23.17202668,243.66,243.6,6.2683]
[1732199747382,23.17202668,243.64,243.6,6.2683]
[1732199747702,23.17202668,243.66,243.6,6.2683]
[1732199747974,23.17202668,243.64,243.6,6.2683]
[1732199748190,23.17202668,243.64,243.59,8.2103]
[1732199748402,23.17202668,243.64,243.5,33.67226981]
[1732199748403,23.17202668,243.6,243.53,6.5442]
[1732199748575,23.17202668,243.6,243.53,3.2849]
[1732199748785,23.17202668,243.6,243.53,11.4974]
[1732199749474,23.17202668,243.62,243.53,34.66942668]
[1732199749663,23.17202668,243.6,243.53,8.2125]
[1732199749858,23.17202668,243.6,243.53,31.38452668]
[1732199750062,23.17202668,243.6,243.53,8.2125]
[1732199750266,23.17202668,243.58,243.5,0.81806981]
[1732199750456,23.17202668,243.56,243.5,0.81806981]
[1732199750872,23.17202668,243.52,243.5,0.81806981]
[1732199751675,4.1055,243.57,243.5,0.81806981]
[1732199751888,23.17202668,243.51,243.5,0.81806981]
[1732199753051,0.5,243.48,243.32,8.2193]
[1732199753156,23.17202668,243.42,243.35,23.17202668]
[1732199753500,23.17202668,243.46,243.37,23.17202668]
[1732199753816,23.17202668,243.5,243.41,31.38842668]
[1732199753973,23.17202668,243.48,243.41,8.2164]
[1732199754156,23.17202668,243.48,243.41,34.26422668]
[1732199754371,23.17202668,243.48,243.41,11.0922]
[1732199754978,23.17202668,243.45,243.35,30.36302668]
[1732199755183,1.0,243.54,243.31,2.8769]
[1732199755184,23.17202668,243.43,243.33,23.17202668]
[1732199755512,23.17202668,243.39,243.31,26.04892668]
[1732199755895,23.17202668,243.39,243.31,33.24132668]
[1732199756430,23.17202668,243.39,243.31,7.1924]
[1732199756431,27.28062668,243.39,243.31,7.1924]
[1732199756704,23.0,243.76,243.31,7.1924]
[1732199756705,23.17202668,243.45,243.36,23.17202668]
[1732199757178,23.17202668,243.45,243.31,10.0693]
[1732199757380,23.17202668,243.42,243.33,23.17202668]
[1732199757695,4.1067,243.5,243.39,23.17202668]
[1732199757696,23.17202668,243.48,243.39,23.17202668]
[1732199757911,23.17202668,243.53,243.45,23.17202668]
[1732199758085,4.1044,243.64,243.41,20.0]
[1732199758279,4.1044,243.64,243.49,23.17202668]
[1732199758280,23.17202668,243.59,243.49,23.17202668]
[1732199758478,23.17202668,243.52,243.45,23.17202668]
[1732199758682,23.17202668,243.56,243.47,23.17202668]
[1732199758883,23.17202668,243.58,243.49,23.17202668]
[1732199759182,23.17202668,243.64,243.55,23.17202668]
[1732199759781,23.17202668,243.62,243.53,23.17202668]
[1732199760186,4.1032,243.71,243.55,23.17202668]
[1732199760187,23.17202668,243.64,243.55,23.17202668]
[1732199760416,23.17202668,243.61,243.53,23.17202668]
[1732199760582,23.17202668,243.57,243.5,10.0615]
[1732199760768,23.17202668,243.53,243.47,2.875]
[1732199761063,0.5,243.67,243.47,23.17202668]
[1732199761064,23.17202668,243.55,243.47,23.17202668]
[1732199761478,23.17202668,243.53,243.45,23.17202668]
[1732199761780,23.17202668,243.6,243.4,6.5374]
[1732199761781,23.17202668,243.51,243.43,23.17202668]
[1732199762088,23.17202668,243.53,243.45,23.17202668]
[1732199762408,23.17202668,243.47,243.4,6.5374]
[1732199762608,23.17202668,243.47,243.39,7.19]
[1732199762820,0.5,243.55,243.37,23.17202668]
[1732199762821,23.17202668,243.45,243.37,23.17202668]
[1732199763017,23.17202668,243.47,243.39,23.17202668]
[1732199763206,23.17202668,243.49,243.39,23.17202668]
[1732199763527,16.4735,243.56,243.38,10.0665]
[1732199763528,23.17202668,243.51,243.43,23.17202668]
[1732199763702,23.17202668,243.53,243.43,23.17202668]
[1732199764001,23.17202668,243.51,243.43,23.17202668]
[1732199764191,23.17202668,243.51,243.43,26.45822668]
[1732199764392,23.17202668,243.55,243.45,23.17202668]
[1732199764602,23.17202668,243.55,243.47,23.17202668]
[1732199764896,23.17202668,243.53,243.45,23.17202668]
[1732199765276,23.17202668,243.53,243.43,11.5021]
[1732199765479,23.17202668,243.53,243.45,23.17202668]
[1732199765812,23.17202668,243.57,243.47,23.17202668]
[1732199766125,23.17202668,243.61,243.51,23.17202668]
[1732199766448,23.17202668,243.57,243.49,23.17202668]
[1732199766609,4.1048,243.62,243.42,23.17202668]
[1732199766610,23.17202668,243.51,243.42,23.17202668]
[1732199767023,23.17202668,243.49,243.4,23.17202668]
[1732199767523,23.17202668,243.51,243.42,23.17202668]
[1732199767829,23.17202668,243.49,243.4,23.17202668]
[1732199768116,23.17202668,243.49,243.34,11.5064]
[1732199768117,23.17202668,243.47,243.38,23.17202668]
[1732199769473,23.17202668,243.47,243.38,34.67652668]
[1732199769671,27.27932668,243.47,243.38,34.67652668]
[1732199770111,23.17202668,243.49,243.4,23.17202668]
[1732199770400,23.17202668,243.47,243.38,34.67652668]
[1732199771080,10.2637,243.58,243.38,8.2176]
[1732199771081,23.17202668,243.45,243.38,8.2176]
[1732199771396,23.17202668,243.45,243.38,11.5046]
[1732199771782,23.17202668,243.43,243.34,23.17202668]
[1732199772001,23.17202668,243.41,243.32,23.17202668]
[1732199772585,23.17202668,243.46,243.37,23.17202668]
[1732199773087,23.17202668,243.49,243.4,23.17202668]
[1732199773526,23.17202668,243.53,243.44,23.17202668]
[1732199773726,23.17202668,243.51,243.42,23.17202668]
[1732199774024,14.3683,243.59,243.42,23.17202668]
[1732199774207,23.17202668,243.5,243.42,23.17202668]
[1732199774534,4.1052,243.59,243.42,23.17202668]
[1732199774717,23.17202668,243.5,243.42,23.17202668]
[1732199775007,23.17202668,243.48,243.4,23.17202668]
[1732199775187,6.1535176,243.54,243.27,21.3055]
[1732199775393,2.96319388,243.53,243.39,23.17202668]
[1732199775613,23.17202668,243.49,243.39,26.45882668]
[1732199775894,23.17202668,243.49,243.39,34.67602668]
[1732199776096,23.17202668,243.47,243.37,23.17202668]
[1732199776295,23.17202668,243.47,243.38,23.17202668]
[1732199776498,23.17202668,243.53,243.42,23.17202668]
[1732199776693,4.1052,243.59,243.36,34.67742668]
[1732199776694,23.17202668,243.55,243.46,23.17202668]
[1732199777080,23.17202668,243.53,243.44,23.17202668]
[1732199777537,23.17202668,243.53,243.43,6.4343]
[1732199777538,23.17202668,243.57,243.48,23.17202668]
[1732199777743,23.17202668,243.59,243.5,23.17202668]
[1732199777897,23.17202668,243.59,243.47,11.5003]
[1732199777898,23.17202668,243.55,243.47,11.5003]
[1732199778199,23.17202668,243.55,243.47,8.2145]
[1732199778784,23.17202668,243.59,243.5,23.17202668]
[1732199779392,23.17202668,243.63,243.54,23.17202668]
[1732199779624,23.17202668,243.63,243.56,23.17202668]
[1732199779924,23.17202668,243.59,243.5,23.17202668]
[1732199780112,23.17202668,243.55,243.46,34.67282668]
[1732199780523,23.17202668,243.57,243.48,23.17202668]
[1732199780714,23.17202668,243.57,243.46,11.5008]
[1732199780715,23.17202668,243.55,243.46,34.67282668]
[1732199781026,23.17202668,243.53,243.46,11.5008]
[1732199781332,23.17202668,243.55,243.46,34.67282668]
[1732199781499,23.17202668,243.57,243.49,23.17202668]
[1732199781686,31.2741,243.71,243.46,11.5008]
[1732199781687,23.17202668,243.55,243.47,23.17202668]
[1732199782089,23.17202668,243.57,243.47,23.17202668]
[1732199782406,23.17202668,243.59,243.51,23.17202668]
[1732199782644,23.17202668,243.66,243.57,23.17202668]
[1732199782941,0.5,243.81,243.63,23.17202668]
[1732199782942,2.98124442,243.65,243.63,23.17202668]
[1732199783132,23.17202668,243.72,243.63,23.17202668]
[1732199783327,23.17202668,243.68,243.58,6.2594]
[1732199783502,4.1017,243.8,243.58,6.2594]
[1732199783503,23.17202668,243.64,243.59,3.2842]
[1732199783889,23.17202668,243.68,243.59,26.45622668]
[1732199784103,23.17202668,243.7,243.61,23.17202668]
[1732199784297,2.98517768,243.69,243.61,23.17202668]
[1732199784495,2.98517768,243.69,243.59,11.4947]
[1732199784496,2.98517768,243.69,243.59,34.66672668]
[1732199784703,23.17202668,243.7,243.59,34.66672668]
[1732199784902,2.98771291,243.69,243.59,34.66672668]
[1732199785093,23.17202668,243.7,243.59,34.66672668]
[1732199785295,2.98774574,243.69,243.61,23.17202668]
[1732199785490,21.9137,243.81,243.59,27.9157]
[1732199785491,23.17202668,243.75,243.65,23.17202668]
[1732199785702,23.17202668,243.81,243.73,23.17202668]
[1732199785909,23.67202668,243.96,243.65,15.208]
[1732199785910,2.99020664,243.8,243.65,15.208]
[1732199786119,23.17202668,243.75,243.66,20.0]
[1732199786717,4.1005,243.87,243.63,23.17202668]
[1732199786718,23.17202668,243.73,243.63,23.17202668]
[1732199786916,23.17202668,243.69,243.59,27.9157]
[1732199787111,23.17202668,243.73,243.63,23.17202668]
[1732199787308,15.2082,243.8,243.67,23.17202668]
[1732199787309,23.17202668,243.75,243.67,23.17202668]
[1732199787643,4.1014,243.82,243.67,23.17202668]
[1732199787931,16.4333,243.88,243.69,23.17202668]
[1732199787932,2.98860235,243.74,243.69,23.17202668]
[1732199788214,23.17202668,243.8,243.71,23.17202668]
[1732199788533,0.5,243.95,243.71,23.17202668]
[1732199788534,23.17202668,243.81,243.71,23.17202668]
[1732199788711,23.17202668,243.83,243.73,23.17202668]
[1732199789105,23.17202668,243.83,243.68,20.0]
[1732199789304,23.17202668,243.83,243.73,23.17202668]
[1732199790024,10.748,243.95,243.69,11.4899]
[1732199790025,23.17202668,243.87,243.77,23.17202668]
[1732199790210,2.98524127,243.86,243.81,23.17202668]
[1732199790416,23.17202668,243.91,243.81,23.17202668]
[1732199790634,23.17202668,243.86,243.77,23.17202668]
[1732199791035,23.17202668,243.82,243.74,6.3131]
[1732199791234,23.17202668,243.84,243.74,29.48512668]
[1732199791406,23.17202668,243.84,243.75,11.4871]
[1732199791823,4.0995,243.93,243.75,11.4871]
[1732199791996,23.17202668,243.83,243.75,11.4871]
[1732199792188,23.17202668,243.79,243.72,3.2823]
[1732199792409,23.17202668,243.79,243.7,3.2826]
[1732199792608,23.17202668,243.75,243.69,8.2068]
[1732199792913,23.17202668,243.71,243.64,8.2087]
[1732199793212,0.5,243.79,243.51,15.3476]
[1732199793413,16.7096,243.81,243.51,15.3476]
[1732199793414,23.17202668,243.67,243.58,23.17202668]
[1732199793604,23.17202668,243.69,243.6,23.17202668]
[1732199793800,23.17202668,243.73,243.62,23.17202668]
[1732199794116,23.17202668,243.75,243.64,23.17202668]
[1732199794299,23.17202668,243.79,243.68,23.17202668]
[1732199794808,23.17202668,243.81,243.72,23.17202668]
[1732199795415,23.17202668,243.83,243.74,23.17202668]
[1732199796004,23.17202668,243.85,243.76,23.17202668]
[1732199796194,23.17202668,243.84,243.76,23.17202668]
[1732199796394,23.17202668,243.84,243.74,23.17202668]
[1732199796614,23.17202668,243.82,243.72,23.17202668]
[1732199796921,23.17202668,243.84,243.74,23.17202668]
[1732199797297,1.0,243.75,243.66,23.17202668]
[1732199797496,0.5,243.67,243.36,20.56539299]
[1732199797698,0.5,243.64,243.57,23.17202668]
[1732199797898,0.5,243.61,243.53,23.17202668]
[1732199798195,0.5,243.62,243.24,204.55747733]
[1732199798196,0.5,243.62,243.56,23.17202668]
[1732199798500,0.5,243.66,243.6,23.17202668]
[1732199798703,1.0,243.66,243.6,37.78756566]
[1732199798906,0.5,243.72,243.65,37.78756566]
[1732199799304,0.5,243.72,243.67,37.78756566]
[1732199799703,0.5,243.72,243.67,36.78756566]
[1732199800199,0.5,243.73,243.67,36.78756566]
[1732199800400,1.0,243.69,243.62,37.78756566]
[1732199800605,38.78756566,243.69,243.6,37.78756566]
[1732199800897,38.28756566,243.65,243.56,37.78756566]
[1732199801219,0.5,243.61,243.54,37.78756566]
[1732199801422,38.28756566,243.63,243.54,37.78756566]
[1732199801615,0.5,243.58,243.51,37.78756566]
[1732199801826,37.78756566,243.57,243.36,6.3233]
[1732199802113,0.5,243.56,243.48,37.78756566]
[1732199803416,1.0,243.6,243.52,37.78756566]
[1732199803721,37.78756566,243.61,243.52,37.78756566]
[1732199803908,0.5,243.6,243.52,37.78756566]
[1732199804417,37.78756566,243.61,243.52,37.78756566]
[1732199804625,38.28756566,243.61,243.52,37.78756566]
[1732199804827,38.28756566,243.61,243.33,15.5511]
[1732199804828,37.78756566,243.5,243.33,15.5511]
[1732199805008,37.78756566,243.6,243.37,37.78756566]
[1732199805009,37.78756566,243.46,243.37,37.78756566]
[1732199805199,0.5,243.45,243.37,37.78756566]
[1732199805414,38.28756566,243.46,243.37,37.78756566]
[1732199805415,0.5,243.43,243.37,37.78756566]
[1732199805744,0.5,243.4,243.33,37.78756566]
[1732199805935,0.5,243.41,243.39,37.78756566]
[1732199806137,0.5,243.43,243.37,37.78756566]
[1732199806436,0.5,243.43,243.35,37.78756566]
[1732199806608,38.78756566,243.44,243.35,37.78756566]
[1732199806923,38.78756566,243.44,243.36,37.78756566]
[1732199807099,1.0,243.44,243.36,37.78756566]
[1732199807301,0.5,243.44,243.36,37.78756566]
[1732199807711,0.5,243.46,243.38,37.78756566]
[1732199807939,1.0,243.46,243.38,37.78756566]
[1732199808227,0.5,243.5,243.43,37.78756566]
[1732199808426,1.0,243.5,243.43,37.78756566]
[1732199808624,0.5,243.5,243.43,37.78756566]
[1732199808812,0.5,243.49,243.41,37.78756566]
[1732199809017,37.78756566,243.51,243.43,37.78756566]
[1732199809226,37.78756566,243.47,243.4,20.0]
[1732199809524,0.5,243.43,243.35,37.78756566]
[1732199809821,0.5,243.46,243.4,37.78756566]
[1732199810038,21.631,243.55,243.26,3.84666566]
[1732199810039,0.5,243.42,243.36,37.78756566]
[1732199810332,1.0,243.42,243.34,37.78756566]
[1732199811015,1.0,243.42,242.96,6.3621164]
[1732199811016,0.5,243.3,242.96,18.6955]
[1732199811238,37.78756566,243.31,243.22,37.78756566]
[1732199811438,38.28756566,243.33,243.24,37.78756566]
[1732199811624,0.5,243.37,243.13,6.272]
[1732199811805,38.28756566,243.35,243.23,37.78756566]
[1732199812313,37.78756566,243.33,243.23,37.78756566]
[1732199812832,37.78756566,243.37,243.27,37.78756566]
[1732199813016,37.78756566,243.35,243.28,20.0]
[1732199813229,37.78756566,243.37,243.28,20.0]
[1732199813431,37.78756566,243.37,243.31,15.0]
[1732199814028,37.78756566,243.39,243.31,15.0]
[1732199814229,37.78756566,243.37,243.31,15.0]